Workbook

Sheet RESUMO
A1: PRODUTO | B1: Quant. Vendida Quente | C1: Quant. Vendida Gelada | D1: UNID. VENDIDAS | E1: VALOR UNID. | F1: 01/10/2024 | J1: PLANILHAS | N1: GUIAS | R1: PRODUTO | S1: PREÇO
A2: =_xlfn._xlws.SORT(_xlfn.UNIQUE(R2:R102)) -> AGUA 20 LITROS | B2: =SUMPRODUCT(SUMIF(INDIRECT("'"&$J$2:$J$4&"'!A:A"),A2,INDIRECT("'"&$J$2:$J$4&"'!B:B"))) -> 0 | C2: =SUMPRODUCT(SUMIF(INDIRECT("'"&$J$2:$J$4&"'!A:A"),A2,INDIRECT("'"&$J$2:$J$4&"'!c:c"))) -> 1 | D2: =SUM(B2:C2) -> 1 | E2: =IFERROR(VLOOKUP(A2,$R$2:$S$102,2,0),"0") -> 6 | F2: =D2*E2 -> 6 | J2: 02-10-24 | M2: 1 | N2: =IFERROR(INDEX(GUIAS,M2),"") ->  | R2: Cerveja Skol 1 litro | S2: =VLOOKUP(R2,'02-10-24'!$A$1:$D$200,4,0) -> 6.916666667
A3: AGUA COM GÁS 510ML | B3: =SUMPRODUCT(SUMIF(INDIRECT("'"&$J$2:$J$4&"'!A:A"),A3,INDIRECT("'"&$J$2:$J$4&"'!B:B"))) -> 0 | C3: =SUMPRODUCT(SUMIF(INDIRECT("'"&$J$2:$J$4&"'!A:A"),A3,INDIRECT("'"&$J$2:$J$4&"'!c:c"))) -> 1 | D3: =SUM(B3:C3) -> 1 | E3: =IFERROR(VLOOKUP(A3,$R$2:$S$102,2,0),"0") -> 1.166666667 | F3: =D3*E3 -> 1.166666667 | J3: 03-10-24 | M3: 2 | N3: =IFERROR(INDEX(GUIAS,M3),"") ->  | R3: Cerveja Brahma 1 litro | S3: =VLOOKUP(R3,'02-10-24'!$A$1:$D$200,4,0) -> 6.541666667
A4: Agua Mamba Water 350ml | B4: =SUMPRODUCT(SUMIF(INDIRECT("'"&$J$2:$J$4&"'!A:A"),A4,INDIRECT("'"&$J$2:$J$4&"'!B:B"))) -> 0 | C4: =SUMPRODUCT(SUMIF(INDIRECT("'"&$J$2:$J$4&"'!A:A"),A4,INDIRECT("'"&$J$2:$J$4&"'!c:c"))) -> 0 | D4: 0 | E4: 2.17 | F4: 0 | J4: 04-10-24 | M4: 3 | N4: =IFERROR(INDEX(GUIAS,M4),"") ->  | R4: Cerveja Brahma 1 litro | S4: =VLOOKUP(R4,'02-10-24'!$A$1:$D$200,4,0) -> 6.541666667
A5: AGUA SEM GÁS 510ML | B5: =SUMPRODUCT(SUMIF(INDIRECT("'"&$J$2:$J$4&"'!A:A"),A5,INDIRECT("'"&$J$2:$J$4&"'!B:B"))) -> 0 | C5: =SUMPRODUCT(SUMIF(INDIRECT("'"&$J$2:$J$4&"'!A:A"),A5,INDIRECT("'"&$J$2:$J$4&"'!c:c"))) -> 0 | D5: 0 | E5: 0.8333333333 | F5: 0 | M5: 4 | N5: =IFERROR(INDEX(GUIAS,M5),"") ->  | R5: Cerveja Brahma 300ml | S5: =VLOOKUP(R5,'02-10-24'!$A$1:$D$200,4,0) -> 2.151304348
A6: Bala Halls | B6: =SUMPRODUCT(SUMIF(INDIRECT("'"&$J$2:$J$4&"'!A:A"),A6,INDIRECT("'"&$J$2:$J$4&"'!B:B"))) -> 0 | C6: =SUMPRODUCT(SUMIF(INDIRECT("'"&$J$2:$J$4&"'!A:A"),A6,INDIRECT("'"&$J$2:$J$4&"'!c:c"))) -> 0 | D6: 0 | E6: 1.1971 | F6: 0 | M6: 5 | R6: Cerveja Antartica 1 litro | S6: =VLOOKUP(R6,'02-10-24'!$A$1:$D$200,4,0) -> 6.916666667
A7: Biscoito Piraque | B7: =SUMPRODUCT(SUMIF(INDIRECT("'"&$J$2:$J$4&"'!A:A"),A7,INDIRECT("'"&$J$2:$J$4&"'!B:B"))) -> 0 | C7: =SUMPRODUCT(SUMIF(INDIRECT("'"&$J$2:$J$4&"'!A:A"),A7,INDIRECT("'"&$J$2:$J$4&"'!c:c"))) -> 0 | D7: 0 | E7: 2.5 | F7: 0 | M7: 6 | R7: Cerveja Antartica 1 litro | S7: =VLOOKUP(R7,'02-10-24'!$A$1:$D$200,4,0) -> 6.916666667
A8: BONO | B8: =SUMPRODUCT(SUMIF(INDIRECT("'"&$J$2:$J$4&"'!A:A"),A8,INDIRECT("'"&$J$2:$J$4&"'!B:B"))) -> 0 | C8: =SUMPRODUCT(SUMIF(INDIRECT("'"&$J$2:$J$4&"'!A:A"),A8,INDIRECT("'"&$J$2:$J$4&"'!c:c"))) -> 0 | D8: 0 | E8: 2.17 | F8: 0 | M8: 7 | R8: Cerveja Budweiser 1 litro | S8: =VLOOKUP(R8,'02-10-24'!$A$1:$D$200,4,0) -> 6.541666667
A9: Brahma Duplo Malte | B9: =SUMPRODUCT(SUMIF(INDIRECT("'"&$J$2:$J$4&"'!A:A"),A9,INDIRECT("'"&$J$2:$J$4&"'!B:B"))) -> 0 | C9: =SUMPRODUCT(SUMIF(INDIRECT("'"&$J$2:$J$4&"'!A:A"),A9,INDIRECT("'"&$J$2:$J$4&"'!c:c"))) -> 0 | D9: 0 | E9: 3.425 | F9: 0 | M9: 8 | R9: Cerveja Budweiser 1 litro | S9: =VLOOKUP(R9,'02-10-24'!$A$1:$D$200,4,0) -> 6.541666667
A10: Cachaça 200ml | B10: =SUMPRODUCT(SUMIF(INDIRECT("'"&$J$2:$J$4&"'!A:A"),A10,INDIRECT("'"&$J$2:$J$4&"'!B:B"))) -> 0 | C10: =SUMPRODUCT(SUMIF(INDIRECT("'"&$J$2:$J$4&"'!A:A"),A10,INDIRECT("'"&$J$2:$J$4&"'!c:c"))) -> 2 | D10: 2 | E10: 1.5 | F10: 3 | M10: 9 | R10: Cerveja Budweiser Long Neck | S10: =VLOOKUP(R10,'02-10-24'!$A$1:$D$200,4,0) -> 4
A11: Cachaça 300ml | B11: =SUMPRODUCT(SUMIF(INDIRECT("'"&$J$2:$J$4&"'!A:A"),A11,INDIRECT("'"&$J$2:$J$4&"'!B:B"))) -> 0 | C11: =SUMPRODUCT(SUMIF(INDIRECT("'"&$J$2:$J$4&"'!A:A"),A11,INDIRECT("'"&$J$2:$J$4&"'!c:c"))) -> 0 | D11: 0 | E11: 2.4 | F11: 0 | M11: 10 | R11: Cerveja Antartica 300ml | S11: =VLOOKUP(R11,'02-10-24'!$A$1:$D$200,4,0) -> 2.325217391
A12: Cachaça 500ml | B12: =SUMPRODUCT(SUMIF(INDIRECT("'"&$J$2:$J$4&"'!A:A"),A12,INDIRECT("'"&$J$2:$J$4&"'!B:B"))) -> 0 | C12: =SUMPRODUCT(SUMIF(INDIRECT("'"&$J$2:$J$4&"'!A:A"),A12,INDIRECT("'"&$J$2:$J$4&"'!c:c"))) -> 0 | D12: 0 | E12: 4 | F12: 0 | R12: Cerveja original 300ml | S12: =VLOOKUP(R12,'02-10-24'!$A$1:$D$200,4,0) -> 2.565217391
A13: Cachaça Seleta 1 litro | B13: =SUMPRODUCT(SUMIF(INDIRECT("'"&$J$2:$J$4&"'!A:A"),A13,INDIRECT("'"&$J$2:$J$4&"'!B:B"))) -> 0 | C13: =SUMPRODUCT(SUMIF(INDIRECT("'"&$J$2:$J$4&"'!A:A"),A13,INDIRECT("'"&$J$2:$J$4&"'!c:c"))) -> 0 | D13: 0 | E13: 29.9 | F13: 0 | R13: Cerveja Stella 600ml | S13: =VLOOKUP(R13,'02-10-24'!$A$1:$D$200,4,0) -> 7.55
A14: Carvão Roytec 2,5kg | B14: =SUMPRODUCT(SUMIF(INDIRECT("'"&$J$2:$J$4&"'!A:A"),A14,INDIRECT("'"&$J$2:$J$4&"'!B:B"))) -> 0 | C14: =SUMPRODUCT(SUMIF(INDIRECT("'"&$J$2:$J$4&"'!A:A"),A14,INDIRECT("'"&$J$2:$J$4&"'!c:c"))) -> 0 | D14: 0 | E14: 8.5 | F14: 0 | R14: Cerveja original 1 Litro | S14: =VLOOKUP(R14,'02-10-24'!$A$1:$D$200,4,0) -> 7.491666667
A15: Cerveja Amstel 1 litro | B15: =SUMPRODUCT(SUMIF(INDIRECT("'"&$J$2:$J$4&"'!A:A"),A15,INDIRECT("'"&$J$2:$J$4&"'!B:B"))) -> 12 | C15: =SUMPRODUCT(SUMIF(INDIRECT("'"&$J$2:$J$4&"'!A:A"),A15,INDIRECT("'"&$J$2:$J$4&"'!c:c"))) -> 29 | D15: 41 | E15: 6.245833333 | F15: 256.0791667 | R15: Cerveja original 473 ml | S15: =VLOOKUP(R15,'02-10-24'!$A$1:$D$200,4,0) -> 4.41
A16: Cerveja Amstel 473ml | B16: =SUMPRODUCT(SUMIF(INDIRECT("'"&$J$2:$J$4&"'!A:A"),A16,INDIRECT("'"&$J$2:$J$4&"'!B:B"))) -> 552 | C16: =SUMPRODUCT(SUMIF(INDIRECT("'"&$J$2:$J$4&"'!A:A"),A16,INDIRECT("'"&$J$2:$J$4&"'!c:c"))) -> 34 | D16: 586 | E16: 3.458333333 | F16: 2026.583333 | R16: Vodka Orloff 1 litro | S16: =VLOOKUP(R16,'02-10-24'!$A$1:$D$200,4,0) -> 28.4
A17: Cerveja Antartica 1 litro | B17: =SUMPRODUCT(SUMIF(INDIRECT("'"&$J$2:$J$4&"'!A:A"),A17,INDIRECT("'"&$J$2:$J$4&"'!B:B"))) -> 300 | C17: =SUMPRODUCT(SUMIF(INDIRECT("'"&$J$2:$J$4&"'!A:A"),A17,INDIRECT("'"&$J$2:$J$4&"'!c:c"))) -> 112 | D17: 412 | E17: 6.916666667 | F17: 2849.666667 | R17: Vodka Smirnoff 998ml | S17: =VLOOKUP(R17,'02-10-24'!$A$1:$D$200,4,0) -> 33.73
A18: Cerveja Antartica 300ml | B18: =SUMPRODUCT(SUMIF(INDIRECT("'"&$J$2:$J$4&"'!A:A"),A18,INDIRECT("'"&$J$2:$J$4&"'!B:B"))) -> 0 | C18: =SUMPRODUCT(SUMIF(INDIRECT("'"&$J$2:$J$4&"'!A:A"),A18,INDIRECT("'"&$J$2:$J$4&"'!c:c"))) -> 0 | D18: 0 | E18: 2.325217391 | F18: 0 | R18: Cerveja Sparten Lata 473ml | S18: =VLOOKUP(R18,'02-10-24'!$A$1:$D$200,4,0) -> 4.158333333
A19: Cerveja Antartica lata 473ml | B19: =SUMPRODUCT(SUMIF(INDIRECT("'"&$J$2:$J$4&"'!A:A"),A19,INDIRECT("'"&$J$2:$J$4&"'!B:B"))) -> 3036 | C19: =SUMPRODUCT(SUMIF(INDIRECT("'"&$J$2:$J$4&"'!A:A"),A19,INDIRECT("'"&$J$2:$J$4&"'!c:c"))) -> 33 | D19: 3069 | E19: 3.416666667 | F19: 10485.75 | R19: Cerveja corona LongNeck | S19: =VLOOKUP(R19,'02-10-24'!$A$1:$D$200,4,0) -> 5.291666667
A20: Cerveja BADEN 350ml | B20: =SUMPRODUCT(SUMIF(INDIRECT("'"&$J$2:$J$4&"'!A:A"),A20,INDIRECT("'"&$J$2:$J$4&"'!B:B"))) -> 0 | C20: =SUMPRODUCT(SUMIF(INDIRECT("'"&$J$2:$J$4&"'!A:A"),A20,INDIRECT("'"&$J$2:$J$4&"'!c:c"))) -> 0 | D20: 0 | E20: 4.34 | F20: 0 | R20: Cachaça Seleta 1 litro | S20: =VLOOKUP(R20,'02-10-24'!$A$1:$D$200,4,0) -> 29.9
A21: Cerveja Brahma 1 litro | B21: =SUMPRODUCT(SUMIF(INDIRECT("'"&$J$2:$J$4&"'!A:A"),A21,INDIRECT("'"&$J$2:$J$4&"'!B:B"))) -> 12 | C21: =SUMPRODUCT(SUMIF(INDIRECT("'"&$J$2:$J$4&"'!A:A"),A21,INDIRECT("'"&$J$2:$J$4&"'!c:c"))) -> 7 | D21: 19 | E21: 6.541666667 | F21: 124.2916667 | R21: Wisky Red Label | S21: =VLOOKUP(R21,'02-10-24'!$A$1:$D$200,4,0) -> 74.9
A22: Cerveja Brahma 300ml | B22: =SUMPRODUCT(SUMIF(INDIRECT("'"&$J$2:$J$4&"'!A:A"),A22,INDIRECT("'"&$J$2:$J$4&"'!B:B"))) -> 0 | C22: =SUMPRODUCT(SUMIF(INDIRECT("'"&$J$2:$J$4&"'!A:A"),A22,INDIRECT("'"&$J$2:$J$4&"'!c:c"))) -> 0 | D22: 0 | E22: 2.151304348 | F22: 0 | R22: Wisky Cavalo Branco | S22: =VLOOKUP(R22,'02-10-24'!$A$1:$D$200,4,0) -> 62.9
A23: Cerveja Brahma 473ml | B23: =SUMPRODUCT(SUMIF(INDIRECT("'"&$J$2:$J$4&"'!A:A"),A23,INDIRECT("'"&$J$2:$J$4&"'!B:B"))) -> 360 | C23: =SUMPRODUCT(SUMIF(INDIRECT("'"&$J$2:$J$4&"'!A:A"),A23,INDIRECT("'"&$J$2:$J$4&"'!c:c"))) -> 0 | D23: 360 | E23: 3.25 | F23: 1170 | R23: Refrigerante Pepsi 2 litros | S23: =VLOOKUP(R23,'02-10-24'!$A$1:$D$200,4,0) -> 6.04
A24: Cerveja Budweiser 1 litro | B24: =SUMPRODUCT(SUMIF(INDIRECT("'"&$J$2:$J$4&"'!A:A"),A24,INDIRECT("'"&$J$2:$J$4&"'!B:B"))) -> 0 | C24: =SUMPRODUCT(SUMIF(INDIRECT("'"&$J$2:$J$4&"'!A:A"),A24,INDIRECT("'"&$J$2:$J$4&"'!c:c"))) -> 0 | D24: 0 | E24: 6.541666667 | F24: 0 | R24: Refrigerante Pepsi 200ml | S24: =VLOOKUP(R24,'02-10-24'!$A$1:$D$200,4,0) -> 1.25
A25: Cerveja Budweiser Latão | B25: =SUMPRODUCT(SUMIF(INDIRECT("'"&$J$2:$J$4&"'!A:A"),A25,INDIRECT("'"&$J$2:$J$4&"'!B:B"))) -> 0 | C25: =SUMPRODUCT(SUMIF(INDIRECT("'"&$J$2:$J$4&"'!A:A"),A25,INDIRECT("'"&$J$2:$J$4&"'!c:c"))) -> 0 | D25: 0 | E25: 3.853333333 | F25: 0 | R25: Refrigerante Antarctica 2 litros | S25: =VLOOKUP(R25,'02-10-24'!$A$1:$D$200,4,0) -> 6.63
A26: Cerveja Budweiser Long Neck | B26: =SUMPRODUCT(SUMIF(INDIRECT("'"&$J$2:$J$4&"'!A:A"),A26,INDIRECT("'"&$J$2:$J$4&"'!B:B"))) -> 0 | C26: =SUMPRODUCT(SUMIF(INDIRECT("'"&$J$2:$J$4&"'!A:A"),A26,INDIRECT("'"&$J$2:$J$4&"'!c:c"))) -> 0 | D26: 0 | E26: 4 | F26: 0 | R26: Refrigerante Antarctica 200ml | S26: =VLOOKUP(R26,'02-10-24'!$A$1:$D$200,4,0) -> 1.25
A27: Cerveja Budweiser LongNeck | B27: =SUMPRODUCT(SUMIF(INDIRECT("'"&$J$2:$J$4&"'!A:A"),A27,INDIRECT("'"&$J$2:$J$4&"'!B:B"))) -> 0 | C27: =SUMPRODUCT(SUMIF(INDIRECT("'"&$J$2:$J$4&"'!A:A"),A27,INDIRECT("'"&$J$2:$J$4&"'!c:c"))) -> 0 | D27: 0 | E27: 3.991666667 | F27: 0 | R27: Refrigerante Antarctica 350ml | S27: =VLOOKUP(R27,'02-10-24'!$A$1:$D$200,4,0) -> 0.9666666667
A28: Cerveja corona LongNeck | B28: =SUMPRODUCT(SUMIF(INDIRECT("'"&$J$2:$J$4&"'!A:A"),A28,INDIRECT("'"&$J$2:$J$4&"'!B:B"))) -> 0 | C28: =SUMPRODUCT(SUMIF(INDIRECT("'"&$J$2:$J$4&"'!A:A"),A28,INDIRECT("'"&$J$2:$J$4&"'!c:c"))) -> 0 | D28: 0 | E28: 5.291666667 | F28: 0 | R28: Refrigerante Sukita 2 litros | S28: =VLOOKUP(R28,'02-10-24'!$A$1:$D$200,4,0) -> 4.791666667
A29: Cerveja Heineken 350ml | B29: =SUMPRODUCT(SUMIF(INDIRECT("'"&$J$2:$J$4&"'!A:A"),A29,INDIRECT("'"&$J$2:$J$4&"'!B:B"))) -> 0 | C29: =SUMPRODUCT(SUMIF(INDIRECT("'"&$J$2:$J$4&"'!A:A"),A29,INDIRECT("'"&$J$2:$J$4&"'!c:c"))) -> 0 | D29: 0 | E29: 4.1575 | F29: 0 | R29: Refrigerante Sukita Laranja 200ml | S29: =VLOOKUP(R29,'02-10-24'!$A$1:$D$200,4,0) -> 1.39
A30: Cerveja Heineken 473ml | B30: =SUMPRODUCT(SUMIF(INDIRECT("'"&$J$2:$J$4&"'!A:A"),A30,INDIRECT("'"&$J$2:$J$4&"'!B:B"))) -> 288 | C30: =SUMPRODUCT(SUMIF(INDIRECT("'"&$J$2:$J$4&"'!A:A"),A30,INDIRECT("'"&$J$2:$J$4&"'!c:c"))) -> 38 | D30: 326 | E30: 4.75 | F30: 1548.5 | R30: Energetico Red Bull 250ml | S30: =VLOOKUP(R30,'02-10-24'!$A$1:$D$200,4,0) -> 7.29
A31: Cerveja Heineken 600ml | B31: =SUMPRODUCT(SUMIF(INDIRECT("'"&$J$2:$J$4&"'!A:A"),A31,INDIRECT("'"&$J$2:$J$4&"'!B:B"))) -> 0 | C31: =SUMPRODUCT(SUMIF(INDIRECT("'"&$J$2:$J$4&"'!A:A"),A31,INDIRECT("'"&$J$2:$J$4&"'!c:c"))) -> 0 | D31: 0 | E31: 8.29 | F31: 0 | R31: H2OH 1,5 litro limoneto | S31: =VLOOKUP(R31,'02-10-24'!$A$1:$D$200,4,0) -> 6.6
A32: Cerveja Itaipava Latão | B32: =SUMPRODUCT(SUMIF(INDIRECT("'"&$J$2:$J$4&"'!A:A"),A32,INDIRECT("'"&$J$2:$J$4&"'!B:B"))) -> 0 | C32: =SUMPRODUCT(SUMIF(INDIRECT("'"&$J$2:$J$4&"'!A:A"),A32,INDIRECT("'"&$J$2:$J$4&"'!c:c"))) -> 0 | D32: 0 | E32: 2.5125 | F32: 0 | R32: Bala Halls | S32: =VLOOKUP(R32,'02-10-24'!$A$1:$D$200,4,0) -> 1.1971
A33: Cerveja Lagunitas 350ml | B33: =SUMPRODUCT(SUMIF(INDIRECT("'"&$J$2:$J$4&"'!A:A"),A33,INDIRECT("'"&$J$2:$J$4&"'!B:B"))) -> 0 | C33: =SUMPRODUCT(SUMIF(INDIRECT("'"&$J$2:$J$4&"'!A:A"),A33,INDIRECT("'"&$J$2:$J$4&"'!c:c"))) -> 0 | D33: 0 | E33: 4 | F33: 0 | R33: Skol Beats | S33: =VLOOKUP(R33,'02-10-24'!$A$1:$D$200,4,0) -> 4.8
A34: Cerveja Lokal latão | B34: =SUMPRODUCT(SUMIF(INDIRECT("'"&$J$2:$J$4&"'!A:A"),A34,INDIRECT("'"&$J$2:$J$4&"'!B:B"))) -> 0 | C34: =SUMPRODUCT(SUMIF(INDIRECT("'"&$J$2:$J$4&"'!A:A"),A34,INDIRECT("'"&$J$2:$J$4&"'!c:c"))) -> 0 | D34: 0 | E34: 2.283333333 | F34: 0 | R34: Biscoito Piraque | S34: =VLOOKUP(R34,'02-10-24'!$A$1:$D$200,4,0) -> 2.5
A35: Cerveja original 1 Litro | B35: =SUMPRODUCT(SUMIF(INDIRECT("'"&$J$2:$J$4&"'!A:A"),A35,INDIRECT("'"&$J$2:$J$4&"'!B:B"))) -> 0 | C35: =SUMPRODUCT(SUMIF(INDIRECT("'"&$J$2:$J$4&"'!A:A"),A35,INDIRECT("'"&$J$2:$J$4&"'!c:c"))) -> 0 | D35: 0 | E35: 7.491666667 | F35: 0 | R35: Cerveja Heineken 600ml | S35: =VLOOKUP(R35,'02-10-24'!$A$1:$D$200,4,0) -> 8.29
A36: Cerveja original 300ml | B36: =SUMPRODUCT(SUMIF(INDIRECT("'"&$J$2:$J$4&"'!A:A"),A36,INDIRECT("'"&$J$2:$J$4&"'!B:B"))) -> 0 | C36: =SUMPRODUCT(SUMIF(INDIRECT("'"&$J$2:$J$4&"'!A:A"),A36,INDIRECT("'"&$J$2:$J$4&"'!c:c"))) -> 0 | D36: 0 | E36: 2.565217391 | F36: 0 | R36: Agua Mamba Water 350ml | S36: =VLOOKUP(R36,'02-10-24'!$A$1:$D$200,4,0) -> 2.17
A37: Cerveja original 473 ml | B37: =SUMPRODUCT(SUMIF(INDIRECT("'"&$J$2:$J$4&"'!A:A"),A37,INDIRECT("'"&$J$2:$J$4&"'!B:B"))) -> 0 | C37: =SUMPRODUCT(SUMIF(INDIRECT("'"&$J$2:$J$4&"'!A:A"),A37,INDIRECT("'"&$J$2:$J$4&"'!c:c"))) -> 0 | D37: 0 | E37: 4.41 | F37: 0 | R37: Cerveja Lagunitas 350ml | S37: =VLOOKUP(R37,'02-10-24'!$A$1:$D$200,4,0) -> 4
A38: Cerveja Skol 1 litro | B38: =SUMPRODUCT(SUMIF(INDIRECT("'"&$J$2:$J$4&"'!A:A"),A38,INDIRECT("'"&$J$2:$J$4&"'!B:B"))) -> 12 | C38: =SUMPRODUCT(SUMIF(INDIRECT("'"&$J$2:$J$4&"'!A:A"),A38,INDIRECT("'"&$J$2:$J$4&"'!c:c"))) -> 4 | D38: 16 | E38: 6.916666667 | F38: 110.6666667 | R38: Cerveja Amstel 1 litro | S38: =VLOOKUP(R38,'02-10-24'!$A$1:$D$200,4,0) -> 6.245833333
A39: Cerveja Skol Beats Lata 269ml | B39: =SUMPRODUCT(SUMIF(INDIRECT("'"&$J$2:$J$4&"'!A:A"),A39,INDIRECT("'"&$J$2:$J$4&"'!B:B"))) -> 0 | C39: =SUMPRODUCT(SUMIF(INDIRECT("'"&$J$2:$J$4&"'!A:A"),A39,INDIRECT("'"&$J$2:$J$4&"'!c:c"))) -> 0 | D39: 0 | E39: 5.14 | F39: 0 | R39: Cerveja BADEN 350ml | S39: =VLOOKUP(R39,'02-10-24'!$A$1:$D$200,4,0) -> 4.34
A40: Cerveja Skol Lata 473ml | B40: =SUMPRODUCT(SUMIF(INDIRECT("'"&$J$2:$J$4&"'!A:A"),A40,INDIRECT("'"&$J$2:$J$4&"'!B:B"))) -> 0 | C40: =SUMPRODUCT(SUMIF(INDIRECT("'"&$J$2:$J$4&"'!A:A"),A40,INDIRECT("'"&$J$2:$J$4&"'!c:c"))) -> 0 | D40: 0 | E40: 3.491666667 | F40: 0 | R40: Refrigerante ItaUp sabores | S40: =VLOOKUP(R40,'02-10-24'!$A$1:$D$200,4,0) -> 3.15
A41: Cerveja Sparten Lata 473ml | B41: =SUMPRODUCT(SUMIF(INDIRECT("'"&$J$2:$J$4&"'!A:A"),A41,INDIRECT("'"&$J$2:$J$4&"'!B:B"))) -> 0 | C41: =SUMPRODUCT(SUMIF(INDIRECT("'"&$J$2:$J$4&"'!A:A"),A41,INDIRECT("'"&$J$2:$J$4&"'!c:c"))) -> 0 | D41: 0 | E41: 4.158333333 | F41: 0 | R41: Energetico Fontt 2 litros | S41: =VLOOKUP(R41,'02-10-24'!$A$1:$D$200,4,0) -> 3
A42: Cerveja Stella 600ml | B42: =SUMPRODUCT(SUMIF(INDIRECT("'"&$J$2:$J$4&"'!A:A"),A42,INDIRECT("'"&$J$2:$J$4&"'!B:B"))) -> 0 | C42: =SUMPRODUCT(SUMIF(INDIRECT("'"&$J$2:$J$4&"'!A:A"),A42,INDIRECT("'"&$J$2:$J$4&"'!c:c"))) -> 0 | D42: 0 | E42: 7.55 | F42: 0 | R42: Refrigerante Coca Cola 2 litros | S42: =VLOOKUP(R42,'02-10-24'!$A$1:$D$200,4,0) -> 7.666666667
A43: Cerveja Stella lata 473 ml | B43: =SUMPRODUCT(SUMIF(INDIRECT("'"&$J$2:$J$4&"'!A:A"),A43,INDIRECT("'"&$J$2:$J$4&"'!B:B"))) -> 0 | C43: =SUMPRODUCT(SUMIF(INDIRECT("'"&$J$2:$J$4&"'!A:A"),A43,INDIRECT("'"&$J$2:$J$4&"'!c:c"))) -> 0 | D43: 0 | E43: 3.908333333 | F43: 0 | R43: Refrigerante Coca Cola 2 litros Retornavel | S43: =VLOOKUP(R43,'02-10-24'!$A$1:$D$200,4,0) -> 5.7
A44: CHOKITO | B44: =SUMPRODUCT(SUMIF(INDIRECT("'"&$J$2:$J$4&"'!A:A"),A44,INDIRECT("'"&$J$2:$J$4&"'!B:B"))) -> 0 | C44: =SUMPRODUCT(SUMIF(INDIRECT("'"&$J$2:$J$4&"'!A:A"),A44,INDIRECT("'"&$J$2:$J$4&"'!c:c"))) -> 0 | D44: 0 | E44: 1.66 | F44: 0 | R44: Refrigerante Coca Cola 2,250 | S44: =VLOOKUP(R44,'02-10-24'!$A$1:$D$200,4,0) -> 
A45: Chopp Bodegão 600ml | B45: =SUMPRODUCT(SUMIF(INDIRECT("'"&$J$2:$J$4&"'!A:A"),A45,INDIRECT("'"&$J$2:$J$4&"'!B:B"))) -> 0 | C45: =SUMPRODUCT(SUMIF(INDIRECT("'"&$J$2:$J$4&"'!A:A"),A45,INDIRECT("'"&$J$2:$J$4&"'!c:c"))) -> 0 | D45: 0 | E45: 4.95 | F45: 0 | R45: Refrigerante Coca Cola 2,250 Sem Açucar | S45: =VLOOKUP(R45,'02-10-24'!$A$1:$D$200,4,0) -> 
A46: Chopp Vinho Pink Moon 600ml | B46: =SUMPRODUCT(SUMIF(INDIRECT("'"&$J$2:$J$4&"'!A:A"),A46,INDIRECT("'"&$J$2:$J$4&"'!B:B"))) -> 0 | C46: =SUMPRODUCT(SUMIF(INDIRECT("'"&$J$2:$J$4&"'!A:A"),A46,INDIRECT("'"&$J$2:$J$4&"'!c:c"))) -> 0 | D46: 0 | E46: 7.4 | F46: 0 | R46: Refrigerante Coca Cola mini 200ml | S46: =VLOOKUP(R46,'02-10-24'!$A$1:$D$200,4,0) -> 1.45
A47: Combo Jaya 1,50 litros | B47: =SUMPRODUCT(SUMIF(INDIRECT("'"&$J$2:$J$4&"'!A:A"),A47,INDIRECT("'"&$J$2:$J$4&"'!B:B"))) -> 0 | C47: =SUMPRODUCT(SUMIF(INDIRECT("'"&$J$2:$J$4&"'!A:A"),A47,INDIRECT("'"&$J$2:$J$4&"'!c:c"))) -> 3 | D47: 3 | E47: 14 | F47: 42 | R47: Refrigerante Fanta Laranja 600ml | S47: =VLOOKUP(R47,'02-10-24'!$A$1:$D$200,4,0) -> 3.62
A48: Combo Jaya 900ml | B48: =SUMPRODUCT(SUMIF(INDIRECT("'"&$J$2:$J$4&"'!A:A"),A48,INDIRECT("'"&$J$2:$J$4&"'!B:B"))) -> 0 | C48: =SUMPRODUCT(SUMIF(INDIRECT("'"&$J$2:$J$4&"'!A:A"),A48,INDIRECT("'"&$J$2:$J$4&"'!c:c"))) -> 0 | D48: 0 | E48: 12.1 | F48: 0 | R48: Refrigerante Coca Cola lata 350ml | S48: =VLOOKUP(R48,'02-10-24'!$A$1:$D$200,4,0) -> 2.75
A49: Combo One 1,50 litros | B49: =SUMPRODUCT(SUMIF(INDIRECT("'"&$J$2:$J$4&"'!A:A"),A49,INDIRECT("'"&$J$2:$J$4&"'!B:B"))) -> 0 | C49: =SUMPRODUCT(SUMIF(INDIRECT("'"&$J$2:$J$4&"'!A:A"),A49,INDIRECT("'"&$J$2:$J$4&"'!c:c"))) -> 1 | D49: 1 | E49: 11.85 | F49: 11.85 | R49: Refrigerante Coca Cola 600ml | S49: =VLOOKUP(R49,'02-10-24'!$A$1:$D$200,4,0) -> 4.5
A50: Combo One 900ml | B50: =SUMPRODUCT(SUMIF(INDIRECT("'"&$J$2:$J$4&"'!A:A"),A50,INDIRECT("'"&$J$2:$J$4&"'!B:B"))) -> 0 | C50: =SUMPRODUCT(SUMIF(INDIRECT("'"&$J$2:$J$4&"'!A:A"),A50,INDIRECT("'"&$J$2:$J$4&"'!c:c"))) -> 0 | D50: 0 | E50: 10 | F50: 0 | R50: Refrigerante Coca Cola lata 350ml sem açucar | S50: =VLOOKUP(R50,'02-10-24'!$A$1:$D$200,4,0) -> 2.61
A51: Coquetel Banana Belong 960ml | B51: =SUMPRODUCT(SUMIF(INDIRECT("'"&$J$2:$J$4&"'!A:A"),A51,INDIRECT("'"&$J$2:$J$4&"'!B:B"))) -> 0 | C51: =SUMPRODUCT(SUMIF(INDIRECT("'"&$J$2:$J$4&"'!A:A"),A51,INDIRECT("'"&$J$2:$J$4&"'!c:c"))) -> 0 | D51: 0 | E51: 15.5 | F51: 0 | R51: Suco DelVale 1,5 | S51: =VLOOKUP(R51,'02-10-24'!$A$1:$D$200,4,0) -> 7.03
A52: Creveja Imperio Latão Large | B52: =SUMPRODUCT(SUMIF(INDIRECT("'"&$J$2:$J$4&"'!A:A"),A52,INDIRECT("'"&$J$2:$J$4&"'!B:B"))) -> 0 | C52: =SUMPRODUCT(SUMIF(INDIRECT("'"&$J$2:$J$4&"'!A:A"),A52,INDIRECT("'"&$J$2:$J$4&"'!c:c"))) -> 0 | D52: 0 | E52: 3.98 | F52: 0 | R52: Suco Kappo | S52: =VLOOKUP(R52,'02-10-24'!$A$1:$D$200,4,0) -> 1.25
A53: Creveja Imperio Latão Puro Malte | B53: =SUMPRODUCT(SUMIF(INDIRECT("'"&$J$2:$J$4&"'!A:A"),A53,INDIRECT("'"&$J$2:$J$4&"'!B:B"))) -> 0 | C53: =SUMPRODUCT(SUMIF(INDIRECT("'"&$J$2:$J$4&"'!A:A"),A53,INDIRECT("'"&$J$2:$J$4&"'!c:c"))) -> 22 | D53: 22 | E53: 3.083333333 | F53: 67.83333333 | R53: CHOKITO | S53: =VLOOKUP(R53,'02-10-24'!$A$1:$D$200,4,0) -> 1.66
A54: Energetico Fontt 2 litros | B54: =SUMPRODUCT(SUMIF(INDIRECT("'"&$J$2:$J$4&"'!A:A"),A54,INDIRECT("'"&$J$2:$J$4&"'!B:B"))) -> 0 | C54: =SUMPRODUCT(SUMIF(INDIRECT("'"&$J$2:$J$4&"'!A:A"),A54,INDIRECT("'"&$J$2:$J$4&"'!c:c"))) -> 0 | D54: 0 | E54: 3 | F54: 0 | R54: PASSATEMPO | S54: =VLOOKUP(R54,'02-10-24'!$A$1:$D$200,4,0) -> 2.29
A55: Energetico Jaya 2 litros | B55: =SUMPRODUCT(SUMIF(INDIRECT("'"&$J$2:$J$4&"'!A:A"),A55,INDIRECT("'"&$J$2:$J$4&"'!B:B"))) -> 0 | C55: =SUMPRODUCT(SUMIF(INDIRECT("'"&$J$2:$J$4&"'!A:A"),A55,INDIRECT("'"&$J$2:$J$4&"'!c:c"))) -> 1 | D55: 1 | E55: 6.5 | F55: 6.5 | R55: BONO | S55: =VLOOKUP(R55,'02-10-24'!$A$1:$D$200,4,0) -> 2.17
A56: Energetico one 2 litros | B56: =SUMPRODUCT(SUMIF(INDIRECT("'"&$J$2:$J$4&"'!A:A"),A56,INDIRECT("'"&$J$2:$J$4&"'!B:B"))) -> 12 | C56: =SUMPRODUCT(SUMIF(INDIRECT("'"&$J$2:$J$4&"'!A:A"),A56,INDIRECT("'"&$J$2:$J$4&"'!c:c"))) -> 1 | D56: 13 | E56: 4.35 | F56: 56.55 | R56: PRESTIGIO | S56: =VLOOKUP(R56,'02-10-24'!$A$1:$D$200,4,0) -> 1.54
A57: Energetico Red Bull 250ml | B57: =SUMPRODUCT(SUMIF(INDIRECT("'"&$J$2:$J$4&"'!A:A"),A57,INDIRECT("'"&$J$2:$J$4&"'!B:B"))) -> 0 | C57: =SUMPRODUCT(SUMIF(INDIRECT("'"&$J$2:$J$4&"'!A:A"),A57,INDIRECT("'"&$J$2:$J$4&"'!c:c"))) -> 0 | D57: 0 | E57: 7.29 | F57: 0 | R57: Carvão Roytec 2,5kg | S57: =VLOOKUP(R57,'02-10-24'!$A$1:$D$200,4,0) -> 8.5
A58: GostoGin lata 269ml | B58: =SUMPRODUCT(SUMIF(INDIRECT("'"&$J$2:$J$4&"'!A:A"),A58,INDIRECT("'"&$J$2:$J$4&"'!B:B"))) -> 0 | C58: =SUMPRODUCT(SUMIF(INDIRECT("'"&$J$2:$J$4&"'!A:A"),A58,INDIRECT("'"&$J$2:$J$4&"'!c:c"))) -> 0 | D58: 0 | E58: 3.399166667 | F58: 0 | R58: AGUA 20 LITROS | S58: =VLOOKUP(R58,'02-10-24'!$A$1:$D$200,4,0) -> 6
A59: H2OH 1,5 litro limoneto | B59: =SUMPRODUCT(SUMIF(INDIRECT("'"&$J$2:$J$4&"'!A:A"),A59,INDIRECT("'"&$J$2:$J$4&"'!B:B"))) -> 0 | C59: =SUMPRODUCT(SUMIF(INDIRECT("'"&$J$2:$J$4&"'!A:A"),A59,INDIRECT("'"&$J$2:$J$4&"'!c:c"))) -> 0 | D59: 0 | E59: 6.6 | F59: 0 | R59: AGUA COM GÁS 510ML | S59: =VLOOKUP(R59,'02-10-24'!$A$1:$D$200,4,0) -> 1.166666667
A60: Ice One 300ml | B60: =SUMPRODUCT(SUMIF(INDIRECT("'"&$J$2:$J$4&"'!A:A"),A60,INDIRECT("'"&$J$2:$J$4&"'!B:B"))) -> 0 | C60: =SUMPRODUCT(SUMIF(INDIRECT("'"&$J$2:$J$4&"'!A:A"),A60,INDIRECT("'"&$J$2:$J$4&"'!c:c"))) -> 0 | D60: 0 | E60: 1.89 | F60: 0 | R60: AGUA SEM GÁS 510ML | S60: =VLOOKUP(R60,'02-10-24'!$A$1:$D$200,4,0) -> 0.8333333333
A61: Ice syn 300ml | B61: =SUMPRODUCT(SUMIF(INDIRECT("'"&$J$2:$J$4&"'!A:A"),A61,INDIRECT("'"&$J$2:$J$4&"'!B:B"))) -> 0 | C61: =SUMPRODUCT(SUMIF(INDIRECT("'"&$J$2:$J$4&"'!A:A"),A61,INDIRECT("'"&$J$2:$J$4&"'!c:c"))) -> 0 | D61: 0 | E61: 1.80125 | F61: 0 | R61: Energetico one 2 litros | S61: =VLOOKUP(R61,'02-10-24'!$A$1:$D$200,4,0) -> 4.35
A62: Menta 900ml | B62: =SUMPRODUCT(SUMIF(INDIRECT("'"&$J$2:$J$4&"'!A:A"),A62,INDIRECT("'"&$J$2:$J$4&"'!B:B"))) -> 0 | C62: =SUMPRODUCT(SUMIF(INDIRECT("'"&$J$2:$J$4&"'!A:A"),A62,INDIRECT("'"&$J$2:$J$4&"'!c:c"))) -> 0 | D62: 0 | E62: 5.9 | F62: 0 | R62: Vodka Darkoff 900ml | S62: =VLOOKUP(R62,'02-10-24'!$A$1:$D$200,4,0) -> 5.5
A63: Ousadia 500ml | B63: =SUMPRODUCT(SUMIF(INDIRECT("'"&$J$2:$J$4&"'!A:A"),A63,INDIRECT("'"&$J$2:$J$4&"'!B:B"))) -> 0 | C63: =SUMPRODUCT(SUMIF(INDIRECT("'"&$J$2:$J$4&"'!A:A"),A63,INDIRECT("'"&$J$2:$J$4&"'!c:c"))) -> 0 | D63: 0 | E63: 3.243333333 | F63: 0 | R63: Vodka Darkoff 1,50 litros | S63: =VLOOKUP(R63,'02-10-24'!$A$1:$D$200,4,0) -> 7.5
A64: PASSATEMPO | B64: =SUMPRODUCT(SUMIF(INDIRECT("'"&$J$2:$J$4&"'!A:A"),A64,INDIRECT("'"&$J$2:$J$4&"'!B:B"))) -> 0 | C64: =SUMPRODUCT(SUMIF(INDIRECT("'"&$J$2:$J$4&"'!A:A"),A64,INDIRECT("'"&$J$2:$J$4&"'!c:c"))) -> 0 | D64: 0 | E64: 2.29 | F64: 0 | R64: Combo Jaya 1,50 litros | S64: =VLOOKUP(R64,'02-10-24'!$A$1:$D$200,4,0) -> 14
A65: PRESTIGIO | B65: =SUMPRODUCT(SUMIF(INDIRECT("'"&$J$2:$J$4&"'!A:A"),A65,INDIRECT("'"&$J$2:$J$4&"'!B:B"))) -> 0 | C65: =SUMPRODUCT(SUMIF(INDIRECT("'"&$J$2:$J$4&"'!A:A"),A65,INDIRECT("'"&$J$2:$J$4&"'!c:c"))) -> 0 | D65: 0 | E65: 1.54 | F65: 0 | R65: Combo One 1,50 litros | S65: =VLOOKUP(R65,'02-10-24'!$A$1:$D$200,4,0) -> 11.85
A66: Refrigerante Antarctica 2 litros | B66: =SUMPRODUCT(SUMIF(INDIRECT("'"&$J$2:$J$4&"'!A:A"),A66,INDIRECT("'"&$J$2:$J$4&"'!B:B"))) -> 6 | C66: =SUMPRODUCT(SUMIF(INDIRECT("'"&$J$2:$J$4&"'!A:A"),A66,INDIRECT("'"&$J$2:$J$4&"'!c:c"))) -> 3 | D66: 9 | E66: 6.63 | F66: 59.67 | R66: Combo Jaya 900ml | S66: =VLOOKUP(R66,'02-10-24'!$A$1:$D$200,4,0) -> 12.1
A67: Refrigerante Antarctica 200ml | B67: =SUMPRODUCT(SUMIF(INDIRECT("'"&$J$2:$J$4&"'!A:A"),A67,INDIRECT("'"&$J$2:$J$4&"'!B:B"))) -> 0 | C67: =SUMPRODUCT(SUMIF(INDIRECT("'"&$J$2:$J$4&"'!A:A"),A67,INDIRECT("'"&$J$2:$J$4&"'!c:c"))) -> 0 | D67: =SUM(B67:C67) -> 0 | E67: =IFERROR(VLOOKUP(A67,$R$2:$S$102,2,0),"0") -> 1.25 | F67: =D67*E67 -> 0 | R67: Combo One 900ml | S67: =VLOOKUP(R67,'02-10-24'!$A$1:$D$200,4,0) -> 10
A68: Refrigerante Antarctica 350ml | B68: =SUMPRODUCT(SUMIF(INDIRECT("'"&$J$2:$J$4&"'!A:A"),A68,INDIRECT("'"&$J$2:$J$4&"'!B:B"))) -> 0 | C68: =SUMPRODUCT(SUMIF(INDIRECT("'"&$J$2:$J$4&"'!A:A"),A68,INDIRECT("'"&$J$2:$J$4&"'!c:c"))) -> 0 | D68: 0 | E68: 0.9666666667 | F68: 0 | R68: Vinho Bodegão Bordo 1 Litro | S68: =VLOOKUP(R68,'02-10-24'!$A$1:$D$200,4,0) -> 8.245
A69: Refrigerante Coca Cola 2 litros | B69: =SUMPRODUCT(SUMIF(INDIRECT("'"&$J$2:$J$4&"'!A:A"),A69,INDIRECT("'"&$J$2:$J$4&"'!B:B"))) -> 108 | C69: =SUMPRODUCT(SUMIF(INDIRECT("'"&$J$2:$J$4&"'!A:A"),A69,INDIRECT("'"&$J$2:$J$4&"'!c:c"))) -> 3 | D69: 111 | E69: 7.666666667 | F69: 851 | R69: Energetico Jaya 2 litros | S69: =VLOOKUP(R69,'02-10-24'!$A$1:$D$200,4,0) -> 6.5
A70: Refrigerante Coca Cola 2 litros Retornavel | B70: =SUMPRODUCT(SUMIF(INDIRECT("'"&$J$2:$J$4&"'!A:A"),A70,INDIRECT("'"&$J$2:$J$4&"'!B:B"))) -> 0 | C70: =SUMPRODUCT(SUMIF(INDIRECT("'"&$J$2:$J$4&"'!A:A"),A70,INDIRECT("'"&$J$2:$J$4&"'!c:c"))) -> 5 | D70: 5 | E70: 5.7 | F70: 28.5 | R70: Ice One 300ml | S70: =VLOOKUP(R70,'02-10-24'!$A$1:$D$200,4,0) -> 1.89
A71: Refrigerante Coca Cola 2,250 | B71: =SUMPRODUCT(SUMIF(INDIRECT("'"&$J$2:$J$4&"'!A:A"),A71,INDIRECT("'"&$J$2:$J$4&"'!B:B"))) -> 0 | C71: =SUMPRODUCT(SUMIF(INDIRECT("'"&$J$2:$J$4&"'!A:A"),A71,INDIRECT("'"&$J$2:$J$4&"'!c:c"))) -> 0 | D71: 0 | E71: 0 | F71: 0 | R71: Coquetel Banana Belong 960ml | S71: =VLOOKUP(R71,'02-10-24'!$A$1:$D$200,4,0) -> 15.5
A72: Refrigerante Coca Cola 2,250 Sem Açucar | B72: =SUMPRODUCT(SUMIF(INDIRECT("'"&$J$2:$J$4&"'!A:A"),A72,INDIRECT("'"&$J$2:$J$4&"'!B:B"))) -> 0 | C72: =SUMPRODUCT(SUMIF(INDIRECT("'"&$J$2:$J$4&"'!A:A"),A72,INDIRECT("'"&$J$2:$J$4&"'!c:c"))) -> 0 | D72: 0 | E72: 0 | F72: 0 | R72: Chopp Bodegão 600ml | S72: =VLOOKUP(R72,'02-10-24'!$A$1:$D$200,4,0) -> 4.95
A73: Refrigerante Coca Cola 600ml | B73: =SUMPRODUCT(SUMIF(INDIRECT("'"&$J$2:$J$4&"'!A:A"),A73,INDIRECT("'"&$J$2:$J$4&"'!B:B"))) -> 0 | C73: =SUMPRODUCT(SUMIF(INDIRECT("'"&$J$2:$J$4&"'!A:A"),A73,INDIRECT("'"&$J$2:$J$4&"'!c:c"))) -> 0 | D73: 0 | E73: 4.5 | F73: 0 | R73: Vinho Bodegão 2 Litros | S73: =VLOOKUP(R73,'02-10-24'!$A$1:$D$200,4,0) -> 16.5
A74: Refrigerante Coca Cola lata 350ml | B74: =SUMPRODUCT(SUMIF(INDIRECT("'"&$J$2:$J$4&"'!A:A"),A74,INDIRECT("'"&$J$2:$J$4&"'!B:B"))) -> 0 | C74: =SUMPRODUCT(SUMIF(INDIRECT("'"&$J$2:$J$4&"'!A:A"),A74,INDIRECT("'"&$J$2:$J$4&"'!c:c"))) -> 0 | D74: 0 | E74: 2.75 | F74: 0 | R74: Menta 900ml | S74: =VLOOKUP(R74,'02-10-24'!$A$1:$D$200,4,0) -> 5.9
A75: Refrigerante Coca Cola lata 350ml sem açucar | B75: =SUMPRODUCT(SUMIF(INDIRECT("'"&$J$2:$J$4&"'!A:A"),A75,INDIRECT("'"&$J$2:$J$4&"'!B:B"))) -> 0 | C75: =SUMPRODUCT(SUMIF(INDIRECT("'"&$J$2:$J$4&"'!A:A"),A75,INDIRECT("'"&$J$2:$J$4&"'!c:c"))) -> 0 | D75: 0 | E75: 2.61 | F75: 0 | R75: Ousadia 500ml | S75: =VLOOKUP(R75,'02-10-24'!$A$1:$D$200,4,0) -> 3.243333333
A76: Refrigerante Coca Cola mini 200ml | B76: =SUMPRODUCT(SUMIF(INDIRECT("'"&$J$2:$J$4&"'!A:A"),A76,INDIRECT("'"&$J$2:$J$4&"'!B:B"))) -> 0 | C76: =SUMPRODUCT(SUMIF(INDIRECT("'"&$J$2:$J$4&"'!A:A"),A76,INDIRECT("'"&$J$2:$J$4&"'!c:c"))) -> 0 | D76: 0 | E76: 1.45 | F76: 0 | R76: Chopp Vinho Pink Moon 600ml | S76: =VLOOKUP(R76,'02-10-24'!$A$1:$D$200,4,0) -> 7.4
A77: Refrigerante Fanta Laranja 600ml | B77: =SUMPRODUCT(SUMIF(INDIRECT("'"&$J$2:$J$4&"'!A:A"),A77,INDIRECT("'"&$J$2:$J$4&"'!B:B"))) -> 0 | C77: =SUMPRODUCT(SUMIF(INDIRECT("'"&$J$2:$J$4&"'!A:A"),A77,INDIRECT("'"&$J$2:$J$4&"'!c:c"))) -> 0 | D77: 0 | E77: 3.62 | F77: 0 | R77: Vodka Komaroff 1L | S77: =VLOOKUP(R77,'02-10-24'!$A$1:$D$200,4,0) -> 6
A78: Refrigerante ItaUp sabores | B78: =SUMPRODUCT(SUMIF(INDIRECT("'"&$J$2:$J$4&"'!A:A"),A78,INDIRECT("'"&$J$2:$J$4&"'!B:B"))) -> 0 | C78: =SUMPRODUCT(SUMIF(INDIRECT("'"&$J$2:$J$4&"'!A:A"),A78,INDIRECT("'"&$J$2:$J$4&"'!c:c"))) -> 0 | D78: 0 | E78: 3.15 | F78: 0 | R78: Ice syn 300ml | S78: =VLOOKUP(R78,'02-10-24'!$A$1:$D$200,4,0) -> 1.80125
A79: Refrigerante Pepsi 2 litros | B79: =SUMPRODUCT(SUMIF(INDIRECT("'"&$J$2:$J$4&"'!A:A"),A79,INDIRECT("'"&$J$2:$J$4&"'!B:B"))) -> 0 | C79: =SUMPRODUCT(SUMIF(INDIRECT("'"&$J$2:$J$4&"'!A:A"),A79,INDIRECT("'"&$J$2:$J$4&"'!c:c"))) -> 2 | D79: 2 | E79: 6.04 | F79: 12.08 | R79: GostoGin lata 269ml | S79: =VLOOKUP(R79,'02-10-24'!$A$1:$D$200,4,0) -> 3.399166667
A80: Refrigerante Pepsi 200ml | B80: =SUMPRODUCT(SUMIF(INDIRECT("'"&$J$2:$J$4&"'!A:A"),A80,INDIRECT("'"&$J$2:$J$4&"'!B:B"))) -> 0 | C80: =SUMPRODUCT(SUMIF(INDIRECT("'"&$J$2:$J$4&"'!A:A"),A80,INDIRECT("'"&$J$2:$J$4&"'!c:c"))) -> 0 | D80: 0 | E80: 1.25 | F80: 0 | R80: Vinho Cantina da serra | S80: =VLOOKUP(R80,'02-10-24'!$A$1:$D$200,4,0) -> 4.476666667
A81: Refrigerante Sukita 2 litros | B81: =SUMPRODUCT(SUMIF(INDIRECT("'"&$J$2:$J$4&"'!A:A"),A81,INDIRECT("'"&$J$2:$J$4&"'!B:B"))) -> 0 | C81: =SUMPRODUCT(SUMIF(INDIRECT("'"&$J$2:$J$4&"'!A:A"),A81,INDIRECT("'"&$J$2:$J$4&"'!c:c"))) -> 2 | D81: 2 | E81: 4.791666667 | F81: 9.583333333 | R81: Cerveja Skol Lata 473ml | S81: =VLOOKUP(R81,'02-10-24'!$A$1:$D$200,4,0) -> 3.491666667
A82: Refrigerante Sukita Laranja 200ml | B82: =SUMPRODUCT(SUMIF(INDIRECT("'"&$J$2:$J$4&"'!A:A"),A82,INDIRECT("'"&$J$2:$J$4&"'!B:B"))) -> 0 | C82: =SUMPRODUCT(SUMIF(INDIRECT("'"&$J$2:$J$4&"'!A:A"),A82,INDIRECT("'"&$J$2:$J$4&"'!c:c"))) -> 0 | D82: 0 | E82: 1.39 | F82: 0 | R82: Cerveja Skol Beats Lata 269ml | S82: =VLOOKUP(R82,'02-10-24'!$A$1:$D$200,4,0) -> 5.14
A83: Skol Beats | B83: =SUMPRODUCT(SUMIF(INDIRECT("'"&$J$2:$J$4&"'!A:A"),A83,INDIRECT("'"&$J$2:$J$4&"'!B:B"))) -> 0 | C83: =SUMPRODUCT(SUMIF(INDIRECT("'"&$J$2:$J$4&"'!A:A"),A83,INDIRECT("'"&$J$2:$J$4&"'!c:c"))) -> 0 | D83: 0 | E83: 4.8 | F83: 0 | R83: Cerveja Brahma 473ml | S83: =VLOOKUP(R83,'02-10-24'!$A$1:$D$200,4,0) -> 3.25
A84: Suco DelVale 1,5 | B84: =SUMPRODUCT(SUMIF(INDIRECT("'"&$J$2:$J$4&"'!A:A"),A84,INDIRECT("'"&$J$2:$J$4&"'!B:B"))) -> 0 | C84: =SUMPRODUCT(SUMIF(INDIRECT("'"&$J$2:$J$4&"'!A:A"),A84,INDIRECT("'"&$J$2:$J$4&"'!c:c"))) -> 0 | D84: 0 | E84: 7.03 | F84: 0 | R84: Cerveja Brahma 473ml | S84: =VLOOKUP(R84,'02-10-24'!$A$1:$D$200,4,0) -> 3.25
A85: Suco Kappo | B85: =SUMPRODUCT(SUMIF(INDIRECT("'"&$J$2:$J$4&"'!A:A"),A85,INDIRECT("'"&$J$2:$J$4&"'!B:B"))) -> 0 | C85: =SUMPRODUCT(SUMIF(INDIRECT("'"&$J$2:$J$4&"'!A:A"),A85,INDIRECT("'"&$J$2:$J$4&"'!c:c"))) -> 0 | D85: 0 | E85: 1.25 | F85: 0 | R85: Cerveja Antartica lata 473ml | S85: =VLOOKUP(R85,'02-10-24'!$A$1:$D$200,4,0) -> 3.416666667
A86: Vinho Bodegão 2 Litros | B86: =SUMPRODUCT(SUMIF(INDIRECT("'"&$J$2:$J$4&"'!A:A"),A86,INDIRECT("'"&$J$2:$J$4&"'!B:B"))) -> 0 | C86: =SUMPRODUCT(SUMIF(INDIRECT("'"&$J$2:$J$4&"'!A:A"),A86,INDIRECT("'"&$J$2:$J$4&"'!c:c"))) -> 2 | D86: 2 | E86: 16.5 | F86: 33 | R86: Cerveja Antartica lata 473ml | S86: =VLOOKUP(R86,'02-10-24'!$A$1:$D$200,4,0) -> 3.416666667
A87: Vinho Bodegão Bordo 1 Litro | B87: =SUMPRODUCT(SUMIF(INDIRECT("'"&$J$2:$J$4&"'!A:A"),A87,INDIRECT("'"&$J$2:$J$4&"'!B:B"))) -> 0 | C87: =SUMPRODUCT(SUMIF(INDIRECT("'"&$J$2:$J$4&"'!A:A"),A87,INDIRECT("'"&$J$2:$J$4&"'!c:c"))) -> 0 | D87: 0 | E87: 8.245 | F87: 0 | R87: Cerveja Stella lata 473 ml | S87: =VLOOKUP(R87,'02-10-24'!$A$1:$D$200,4,0) -> 3.908333333
A88: Vinho Cantina da serra | B88: =SUMPRODUCT(SUMIF(INDIRECT("'"&$J$2:$J$4&"'!A:A"),A88,INDIRECT("'"&$J$2:$J$4&"'!B:B"))) -> 0 | C88: =SUMPRODUCT(SUMIF(INDIRECT("'"&$J$2:$J$4&"'!A:A"),A88,INDIRECT("'"&$J$2:$J$4&"'!c:c"))) -> 0 | D88: 0 | E88: 4.476666667 | F88: 0 | R88: Cerveja Budweiser Latão | S88: =VLOOKUP(R88,'02-10-24'!$A$1:$D$200,4,0) -> 3.853333333
A89: Vodka Darkoff 1,50 litros | B89: =SUMPRODUCT(SUMIF(INDIRECT("'"&$J$2:$J$4&"'!A:A"),A89,INDIRECT("'"&$J$2:$J$4&"'!B:B"))) -> 0 | C89: =SUMPRODUCT(SUMIF(INDIRECT("'"&$J$2:$J$4&"'!A:A"),A89,INDIRECT("'"&$J$2:$J$4&"'!c:c"))) -> 0 | D89: 0 | E89: 7.5 | F89: 0 | R89: Cerveja Budweiser LongNeck | S89: =VLOOKUP(R89,'02-10-24'!$A$1:$D$200,4,0) -> 3.991666667
A90: Vodka Darkoff 900ml | B90: =SUMPRODUCT(SUMIF(INDIRECT("'"&$J$2:$J$4&"'!A:A"),A90,INDIRECT("'"&$J$2:$J$4&"'!B:B"))) -> 12 | C90: =SUMPRODUCT(SUMIF(INDIRECT("'"&$J$2:$J$4&"'!A:A"),A90,INDIRECT("'"&$J$2:$J$4&"'!c:c"))) -> 0 | D90: 12 | E90: 5.5 | F90: 66 | R90: Brahma Duplo Malte | S90: =VLOOKUP(R90,'02-10-24'!$A$1:$D$200,4,0) -> 3.425
A91: Vodka Komaroff 1L | B91: =SUMPRODUCT(SUMIF(INDIRECT("'"&$J$2:$J$4&"'!A:A"),A91,INDIRECT("'"&$J$2:$J$4&"'!B:B"))) -> 0 | C91: =SUMPRODUCT(SUMIF(INDIRECT("'"&$J$2:$J$4&"'!A:A"),A91,INDIRECT("'"&$J$2:$J$4&"'!c:c"))) -> 0 | D91: 0 | E91: 6 | F91: 0 | R91: Cerveja Itaipava Latão | S91: =VLOOKUP(R91,'02-10-24'!$A$1:$D$200,4,0) -> 2.5125
A92: Vodka Orloff 1 litro | B92: =SUMPRODUCT(SUMIF(INDIRECT("'"&$J$2:$J$4&"'!A:A"),A92,INDIRECT("'"&$J$2:$J$4&"'!B:B"))) -> 0 | C92: =SUMPRODUCT(SUMIF(INDIRECT("'"&$J$2:$J$4&"'!A:A"),A92,INDIRECT("'"&$J$2:$J$4&"'!c:c"))) -> 0 | D92: 0 | E92: 28.4 | F92: 0 | R92: Cerveja Lokal latão | S92: =VLOOKUP(R92,'02-10-24'!$A$1:$D$200,4,0) -> 2.283333333
A93: Vodka Smirnoff 998ml | B93: =SUMPRODUCT(SUMIF(INDIRECT("'"&$J$2:$J$4&"'!A:A"),A93,INDIRECT("'"&$J$2:$J$4&"'!B:B"))) -> 0 | C93: =SUMPRODUCT(SUMIF(INDIRECT("'"&$J$2:$J$4&"'!A:A"),A93,INDIRECT("'"&$J$2:$J$4&"'!c:c"))) -> 0 | D93: 0 | E93: 33.73 | F93: 0 | R93: Creveja Imperio Latão Puro Malte | S93: =VLOOKUP(R93,'02-10-24'!$A$1:$D$200,4,0) -> 3.083333333
A94: Wisky Cavalo Branco | B94: =SUMPRODUCT(SUMIF(INDIRECT("'"&$J$2:$J$4&"'!A:A"),A94,INDIRECT("'"&$J$2:$J$4&"'!B:B"))) -> 0 | C94: =SUMPRODUCT(SUMIF(INDIRECT("'"&$J$2:$J$4&"'!A:A"),A94,INDIRECT("'"&$J$2:$J$4&"'!c:c"))) -> 0 | D94: 0 | E94: 62.9 | F94: 0 | R94: Creveja Imperio Latão Puro Malte | S94: =VLOOKUP(R94,'02-10-24'!$A$1:$D$200,4,0) -> 3.083333333
A95: Wisky Red Label | B95: =SUMPRODUCT(SUMIF(INDIRECT("'"&$J$2:$J$4&"'!A:A"),A95,INDIRECT("'"&$J$2:$J$4&"'!B:B"))) -> 0 | C95: =SUMPRODUCT(SUMIF(INDIRECT("'"&$J$2:$J$4&"'!A:A"),A95,INDIRECT("'"&$J$2:$J$4&"'!c:c"))) -> 0 | D95: 0 | E95: 74.9 | F95: 0 | R95: Creveja Imperio Latão Large | S95: =VLOOKUP(R95,'02-10-24'!$A$1:$D$200,4,0) -> 3.98
B96: =SUMPRODUCT(SUMIF(INDIRECT("'"&$J$2:$J$4&"'!A:A"),A96,INDIRECT("'"&$J$2:$J$4&"'!B:B"))) -> 0 | C96: =SUMPRODUCT(SUMIF(INDIRECT("'"&$J$2:$J$4&"'!A:A"),A96,INDIRECT("'"&$J$2:$J$4&"'!c:c"))) -> 0 | D96: 0 | E96: 0 | F96: 0 | R96: Cerveja Amstel 473ml | S96: =VLOOKUP(R96,'02-10-24'!$A$1:$D$200,4,0) -> 3.458333333
B97: =SUMPRODUCT(SUMIF(INDIRECT("'"&$J$2:$J$4&"'!A:A"),A97,INDIRECT("'"&$J$2:$J$4&"'!B:B"))) -> 0 | C97: =SUMPRODUCT(SUMIF(INDIRECT("'"&$J$2:$J$4&"'!A:A"),A97,INDIRECT("'"&$J$2:$J$4&"'!c:c"))) -> 0 | D97: 0 | E97: 0 | F97: 0 | R97: Cerveja Amstel 473ml | S97: =VLOOKUP(R97,'02-10-24'!$A$1:$D$200,4,0) -> 3.458333333
B98: =SUMPRODUCT(SUMIF(INDIRECT("'"&$J$2:$J$4&"'!A:A"),A98,INDIRECT("'"&$J$2:$J$4&"'!B:B"))) -> 0 | C98: =SUMPRODUCT(SUMIF(INDIRECT("'"&$J$2:$J$4&"'!A:A"),A98,INDIRECT("'"&$J$2:$J$4&"'!c:c"))) -> 0 | D98: 0 | E98: 0 | F98: 0 | R98: Cerveja Heineken 350ml | S98: =VLOOKUP(R98,'02-10-24'!$A$1:$D$200,4,0) -> 4.1575
B99: =SUMPRODUCT(SUMIF(INDIRECT("'"&$J$2:$J$4&"'!A:A"),A99,INDIRECT("'"&$J$2:$J$4&"'!B:B"))) -> 0 | C99: =SUMPRODUCT(SUMIF(INDIRECT("'"&$J$2:$J$4&"'!A:A"),A99,INDIRECT("'"&$J$2:$J$4&"'!c:c"))) -> 0 | D99: 0 | E99: 0 | F99: 0 | R99: Cerveja Heineken 473ml | S99: =VLOOKUP(R99,'02-10-24'!$A$1:$D$200,4,0) -> 4.75
B100: =SUMPRODUCT(SUMIF(INDIRECT("'"&$J$2:$J$4&"'!A:A"),A100,INDIRECT("'"&$J$2:$J$4&"'!B:B"))) -> 0 | C100: =SUMPRODUCT(SUMIF(INDIRECT("'"&$J$2:$J$4&"'!A:A"),A100,INDIRECT("'"&$J$2:$J$4&"'!c:c"))) -> 0 | D100: 0 | E100: 0 | F100: 0 | R100: Cachaça 500ml | S100: =VLOOKUP(R100,'02-10-24'!$A$1:$D$200,4,0) -> 4
B101: =SUMPRODUCT(SUMIF(INDIRECT("'"&$J$2:$J$4&"'!A:A"),A101,INDIRECT("'"&$J$2:$J$4&"'!B:B"))) -> 0 | C101: =SUMPRODUCT(SUMIF(INDIRECT("'"&$J$2:$J$4&"'!A:A"),A101,INDIRECT("'"&$J$2:$J$4&"'!c:c"))) -> 0 | D101: 0 | E101: 0 | F101: 0 | R101: Cachaça 300ml | S101: =VLOOKUP(R101,'02-10-24'!$A$1:$D$200,4,0) -> 2.4
B102: =SUMPRODUCT(SUMIF(INDIRECT("'"&$J$2:$J$4&"'!A:A"),A102,INDIRECT("'"&$J$2:$J$4&"'!B:B"))) -> 0 | C102: =SUMPRODUCT(SUMIF(INDIRECT("'"&$J$2:$J$4&"'!A:A"),A102,INDIRECT("'"&$J$2:$J$4&"'!c:c"))) -> 0 | D102: 0 | E102: 0 | F102: 0 | R102: Cachaça 200ml | S102: =VLOOKUP(R102,'02-10-24'!$A$1:$D$200,4,0) -> 1.5

Sheet 02-10-24
A1: Produto | B1: Quantidade Vendida Quente | C1: Quantidade Vendida Gelada | D1: Preço Custo
A2: AMBEV
A3: Coluna1 | B3: Coluna2 | C3: Coluna3 | D3: Coluna4 | E3: Coluna5 | F3: Coluna6 | G3: Coluna7 | H3: Coluna8 | I3: Coluna9 | J3: Coluna10 | K3: Coluna11
A4: Cerveja Skol 1 litro | D4: =83/12 -> 6.916666667
A5: Cerveja Brahma 1 litro | C5: 6 | D5: =78.5/12 -> 6.541666667
A6: Cerveja Brahma 1 litro | D6: =78.5/12 -> 6.541666667
A7: Cerveja Brahma 300ml | D7: =49.48/23 -> 2.151304348
A8: Cerveja Antartica 1 litro | B8: 24 | C8: 19 | D8: =83/12 -> 6.916666667
A9: Cerveja Antartica 1 litro | D9: =83/12 -> 6.916666667
A10: Cerveja Budweiser 1 litro | D10: =78.5/12 -> 6.541666667
A11: Cerveja Budweiser 1 litro | D11: =78.5/12 -> 6.541666667
A12: Cerveja Budweiser Long Neck | D12: 4
A13: Cerveja Antartica 300ml | D13: =53.48/23 -> 2.325217391
A14: Cerveja original 300ml | D14: =59/23 -> 2.565217391
A15: Cerveja Stella 600ml | D15: =181.2/24 -> 7.55
A16: Cerveja original 1 Litro | D16: =89.9/12 -> 7.491666667
A17: Cerveja original 473 ml | D17: =4.41 -> 4.41
A18: Vodka Orloff 1 litro | D18: 28.4
A19: Vodka Smirnoff 998ml | D19: 33.73
A20: Cerveja Sparten Lata 473ml | D20: =49.9/12 -> 4.158333333
A21: Cerveja corona LongNeck | D21: =127/24 -> 5.291666667
A22: Cachaça Seleta 1 litro | D22: 29.9
A23: Wisky Red Label | D23: 74.9
A24: Wisky Cavalo Branco | D24: 62.9
A25: Refrigerante Pepsi 2 litros | C25: 1 | D25: =36.24/6 -> 6.04
A26: Refrigerante Pepsi 200ml | D26: =15/12 -> 1.25
A27: Refrigerante Antarctica 2 litros | C27: 2 | D27: =39.78/6 -> 6.63
A28: Refrigerante Antarctica 200ml | D28: =15/12 -> 1.25
A29: Refrigerante Antarctica 350ml | D29: =11.6/12 -> 0.9666666667
A30: Refrigerante Sukita 2 litros | D30: =28.75/6 -> 4.791666667
A31: Refrigerante Sukita Laranja 200ml | D31: =16.68/12 -> 1.39
A32: Energetico Red Bull 250ml | D32: 7.29
A33: H2OH 1,5 litro limoneto | D33: =39.6/6 -> 6.6
A34: Bala Halls | D34: 1.1971
A35: Skol Beats | D35: =38.4/8 -> 4.8
A36: Biscoito Piraque | D36: 2.5
C37: Venda Custo
A38: HEINEKEN
A39: Cerveja Heineken 600ml | D39: 8.29
A40: Agua Mamba Water 350ml | D40: 2.17
A41: Cerveja Lagunitas 350ml | D41: 4
A42: Cerveja Amstel 1 litro | C42: 13 | D42: =74.95/12 -> 6.245833333
A43: Cerveja BADEN 350ml | D43: 4.34
C44: Venda Custo
A45: ITAUP
A46: Refrigerante ItaUp sabores | D46: =18.9/6 -> 3.15
A47: Energetico Fontt 2 litros | D47: 3
C48: Venda Custo
A49: COCA COLA
A50: Refrigerante Coca Cola 2 litros | B50: =7*6 -> 42 | D50: =46/6 -> 7.666666667
A51: Refrigerante Coca Cola 2 litros Retornavel | C51: 1 | D51: 5.7
A52: Refrigerante Fanta Laranja 2 litros | D52: =35.5/6 -> 5.916666667
A53: Refrigerante Coca Cola 2 litros Sem Açucar | D53: =63.2/8 -> 7.9
A54: Refrigerante Coca Cola mini 200ml | D54: =17.4/12 -> 1.45
A55: Refrigerante Fanta Laranja 600ml | D55: 3.62
A56: Refrigerante Coca Cola lata 350ml | D56: =33/12 -> 2.75
A57: Refrigerante Coca Cola 600ml | D57: 4.5
A58: Refrigerante Coca Cola lata 350ml sem açucar | D58: 2.61
A59: Suco DelVale 1,5 | D59: 7.03
A60: Suco Kappo | D60: 1.25
C61: Venda Custo
A62: NESTLE
A63: CHOKITO | D63: 1.66
A64: PASSATEMPO | D64: 2.29
A65: BONO | D65: 2.17
A66: PRESTIGIO | D66: 1.54
C67: Venda Custo
A68: CARVÃO ROYTEC
A69: Carvão Roytec 2,5kg | D69: 8.5
C70: Venda Custo
A71: AGUA
A72: AGUA 20 LITROS | D72: 6
A73: AGUA COM GÁS 510ML | D73: =14/12 -> 1.166666667
A74: AGUA SEM GÁS 510ML | D74: =10/12 -> 0.8333333333
C75: Venda Custo
A76: BE LONG
A77: Energetico one 2 litros | D77: =26.1/6 -> 4.35
A78: Vodka Darkoff 900ml | D78: 5.5
A79: Vodka Darkoff 1,50 litros | D79: =90/12 -> 7.5
A80: Combo Jaya 1,50 litros | C80: 3 | D80: =D79+D85 -> 14
A81: Combo One 1,50 litros | C81: 1 | D81: =D79+D77 -> 11.85
A82: Combo Jaya 900ml | D82: =5.3+6.8 -> 12.1
A83: Combo One 900ml | D83: =4.7+5.3 -> 10
A84: Vinho Bodegão Bordo 1 Litro | D84: =98.94/12 -> 8.245
A85: Energetico Jaya 2 litros | D85: 6.5
A86: Ice One 300ml | D86: 1.89
A87: Coquetel Banana Belong 960ml | D87: =93/6 -> 15.5
A88: Chopp Bodegão 600ml | D88: =59.4/12 -> 4.95
A89: Vinho Bodegão 2 Litros | D89: 16.5
A90: Menta 900ml | D90: 5.9
C91: Venda Custo
A92: ARBOL
A93: Ousadia 500ml | D93: =38.92/12 -> 3.243333333
A94: Chopp Vinho Pink Moon 600ml | D94: 7.4
A95: Vodka Komaroff 1L | D95: 6
A96: Ice syn 300ml | D96: =43.23/24 -> 1.80125
A97: GostoGin lata 269ml | D97: =81.58/24 -> 3.399166667
A98: Vinho Cantina da serra | D98: =53.72/12 -> 4.476666667
C99: Venda Custo
B101: Soma de Itens | C101: =SUM(B4:C98) -> 112
C102: Venda Custo
A103: INAH
A104: Produto | B104: Quantidade Vendida Quente | C104: Quantidade Vendida Gelada | D104: Preço Custo
A105: AMBEV
A106: Coluna1 | B106: Coluna2 | C106: Coluna3 | D106: Coluna4 | E106: Coluna5 | F106: Coluna6 | G106: Coluna7 | H106: Coluna8 | I106: Coluna9 | J106: Coluna10 | K106: Coluna11
A107: Cerveja Skol Lata 473ml | D107: =41.9/12 -> 3.491666667
A108: Cerveja Skol Beats Lata 269ml | D108: 5.14
A109: Cerveja Brahma 473ml | D109: =39/12 -> 3.25
A110: Cerveja Brahma 473ml | D110: =41.9/12 -> 3.491666667
A111: Cerveja Antartica lata 473ml | B111: =142*12 -> 1704 | C111: 5 | D111: =41/12 -> 3.416666667
A112: Cerveja Antartica lata 473ml | D112: =43.9/12 -> 3.658333333
A113: Cerveja Stella lata 473 ml | D113: =46.9/12 -> 3.908333333
A114: Cerveja Budweiser Latão | D114: =46.24/12 -> 3.853333333
A115: Cerveja Budweiser LongNeck | D115: =95.8/24 -> 3.991666667
A116: Brahma Duplo Malte | D116: 3.425
C118: Venda Custo
A119: ITAIPAVA
A120: Cerveja Itaipava Latão | D120: =30.15/12 -> 2.5125
A121: Cerveja Lokal latão | D121: =27.4/12 -> 2.283333333
C122: Venda Custo
A123: IMPERIO
A124: Creveja Imperio Latão Puro Malte | D124: =37/12 -> 3.083333333
A125: Creveja Imperio Latão Puro Malte | D125: =37/12 -> 3.083333333
A126: Creveja Imperio Latão Large | D126: 3.98
C127: Venda Custo
A128: HEINEKEN
A129: Cerveja Amstel 473ml | B129: 12 | C129: 6 | D129: =41.5/12 -> 3.458333333
A130: Cerveja Amstel 473ml | D130: =45/12 -> 3.75
A131: Cerveja Heineken 350ml | D131: =49.89/12 -> 4.1575
A132: Cerveja Heineken 473ml | B132: =13*12 -> 156 | C132: 13 | D132: =57/12 -> 4.75
C133: Venda Custo
A134: CACHAÇA
A135: Cachaça 500ml | D135: 4
A136: Cachaça 300ml | D136: 2.4
A137: Cachaça 200ml | C137: 1 | D137: 1.5
C139: Venda Custo
B142: Soma de Itens | C142: =SUM(B107:C138) -> 1897
C143: Venda Custo
A145: TOTAL DAS VENDAS CUSTO | B145: =E143+E102 -> 0 | C145: TOTAL DAS VENDAS GERAL

Sheet 03-10-24
A1: Produto | B1: Quantidade Vendida Quente | C1: Quantidade Vendida Gelada | D1: Preço Custo
A2: AMBEV
A3: Coluna1 | B3: Coluna2 | C3: Coluna3 | D3: Coluna4 | E3: Coluna5 | F3: Coluna6 | G3: Coluna7 | H3: Coluna8 | I3: Coluna9 | J3: Coluna10 | K3: Coluna11
A4: Cerveja Skol 1 litro | C4: 2 | D4: =83/12 -> 6.916666667
A5: Cerveja Brahma 1 litro | D5: =78.5/12 -> 6.541666667
A6: Cerveja Brahma 1 litro | D6: =78.5/12 -> 6.541666667
A7: Cerveja Brahma 300ml | D7: =49.48/23 -> 2.151304348
A8: Cerveja Antartica 1 litro | B8: =6*12 -> 72 | C8: 15 | D8: =83/12 -> 6.916666667
A9: Cerveja Antartica 1 litro | D9: =83/12 -> 6.916666667
A10: Cerveja Budweiser 1 litro | D10: =78.5/12 -> 6.541666667
A11: Cerveja Budweiser 1 litro | D11: =78.5/12 -> 6.541666667
A12: Cerveja Budweiser Long Neck | D12: 4
A13: Cerveja Antartica 300ml | D13: =53.48/23 -> 2.325217391
A14: Cerveja original 300ml | D14: =59/23 -> 2.565217391
A15: Cerveja Stella 600ml | D15: =181.2/24 -> 7.55
A16: Cerveja original 1 Litro | D16: =89.9/12 -> 7.491666667
A17: Cerveja original 473 ml | D17: =4.41 -> 4.41
A18: Vodka Orloff 1 litro | D18: 28.4
A19: Vodka Smirnoff 998ml | D19: 33.73
A20: Cerveja Sparten Lata 473ml | D20: =49.9/12 -> 4.158333333
A21: Cerveja corona LongNeck | D21: =127/24 -> 5.291666667
A22: Cachaça Seleta 1 litro | D22: 29.9
A23: Wisky Red Label | D23: 74.9
A24: Wisky Cavalo Branco | D24: 62.9
A25: Refrigerante Pepsi 2 litros | C25: 1 | D25: 6
A26: Refrigerante Pepsi 200ml | D26: =15/12 -> 1.25
A27: Refrigerante Antarctica 2 litros | B27: 6 | D27: =39.78/6 -> 6.63
A28: Refrigerante Antarctica 200ml | D28: =15/12 -> 1.25
A29: Refrigerante Antarctica 350ml | D29: =11.6/12 -> 0.9666666667
A30: Refrigerante Sukita 2 litros | D30: =28.75/6 -> 4.791666667
A31: Refrigerante Sukita Laranja 200ml | D31: =16.68/12 -> 1.39
A32: Energetico Red Bull 250ml | D32: 7.29
A33: H2OH 1,5 litro limoneto | D33: =39.6/6 -> 6.6
A34: Bala Halls | D34: 1.1971
A35: Skol Beats | D35: =38.4/8 -> 4.8
A36: Biscoito Piraque | D36: 2.5
C37: Venda Custo
A38: HEINEKEN
A39: Cerveja Heineken 600ml | D39: 8.29
A40: Agua Mamba Water 350ml | D40: 2.17
A41: Cerveja Lagunitas 350ml | D41: 4
A42: Cerveja Amstel 1 litro | C42: 4 | D42: =74.95/12 -> 6.245833333
A43: Cerveja BADEN 350ml | D43: 4.34
C44: Venda Custo
A45: ITAUP
A46: Refrigerante ItaUp sabores | D46: =18.9/6 -> 3.15
A47: Energetico Fontt 2 litros | D47: 3
C48: Venda Custo
A49: COCA COLA
A50: Refrigerante Coca Cola 2 litros | B50: =6*6 -> 36 | C50: 2 | D50: =46/6 -> 7.666666667
A51: Refrigerante Coca Cola 2 litros Retornavel | C51: 4 | D51: 5.7
A52: Refrigerante Fanta Laranja 2 litros | D52: =35.5/6 -> 5.916666667
A53: Refrigerante Coca Cola 2 litros Sem Açucar | D53: =63.2/8 -> 7.9
A54: Refrigerante Coca Cola mini 200ml | D54: =17.4/12 -> 1.45
A55: Refrigerante Fanta Laranja 600ml | D55: 3.62
A56: Refrigerante Coca Cola lata 350ml | D56: =33/12 -> 2.75
A57: Refrigerante Coca Cola 600ml | D57: 4.5
A58: Refrigerante Coca Cola lata 350ml sem açucar | D58: 2.61
A59: Suco DelVale 1,5 | D59: 7.03
A60: Suco Kappo | D60: 1.25
C61: Venda Custo
A62: NESTLE
A63: CHOKITO | D63: 1.66
A64: PASSATEMPO | D64: 2.29
A65: BONO | D65: 2.17
A66: PRESTIGIO | D66: 1.54
C67: Venda Custo
A68: CARVÃO ROYTEC
A69: Carvão Roytec 2,5kg | D69: 8.5
C70: Venda Custo
A71: AGUA
A72: AGUA 20 LITROS | D72: 6
A73: AGUA COM GÁS 510ML | D73: =14/12 -> 1.166666667
A74: AGUA SEM GÁS 510ML | D74: =10/12 -> 0.8333333333
C75: Venda Custo
A76: BE LONG
A77: Energetico one 2 litros | D77: =26.1/6 -> 4.35
A78: Vodka Darkoff 900ml | D78: 5.5
A79: Vodka Darkoff 1,50 litros | D79: =90/12 -> 7.5
A80: Combo Jaya 1,50 litros | D80: =D79+D85 -> 14
A81: Combo One 1,50 litros | D81: =D79+D77 -> 11.85
A82: Combo Jaya 900ml | D82: =5.3+6.8 -> 12.1
A83: Combo One 900ml | D83: =4.7+5.3 -> 10
A84: Vinho Bodegão Bordo 1 Litro | D84: =98.94/12 -> 8.245
A85: Energetico Jaya 2 litros | D85: 6.5
A86: Ice One 300ml | D86: 1.89
A87: Coquetel Banana Belong 960ml | D87: =93/6 -> 15.5
A88: Chopp Bodegão 600ml | D88: =59.4/12 -> 4.95
A89: Vinho Bodegão 2 Litros | D89: 16.5
A90: Menta 900ml | D90: 5.9
C91: Venda Custo
A92: ARBOL
A93: Ousadia 500ml | D93: =38.92/12 -> 3.243333333
A94: Chopp Vinho Pink Moon 600ml | D94: 7.4
A95: Vodka Komaroff 1L | D95: 6
A96: Ice syn 300ml | D96: =43.23/24 -> 1.80125
A97: GostoGin lata 269ml | D97: =81.58/24 -> 3.399166667
A98: Vinho Cantina da serra | D98: =53.72/12 -> 4.476666667
C99: Venda Custo
B101: Soma de Itens | C101: =SUM(B4:C98) -> 142
C102: Venda Custo
A103: INAH
A104: Produto | B104: Quantidade Vendida Quente | C104: Quantidade Vendida Gelada | D104: Preço Custo
A105: AMBEV
A106: Coluna1 | B106: Coluna2 | C106: Coluna3 | D106: Coluna4 | E106: Coluna5 | F106: Coluna6 | G106: Coluna7 | H106: Coluna8 | I106: Coluna9 | J106: Coluna10 | K106: Coluna11
A107: Cerveja Skol Lata 473ml | D107: =41.9/12 -> 3.491666667
A108: Cerveja Skol Beats Lata 269ml | D108: 5.14
A109: Cerveja Brahma 473ml | D109: =39/12 -> 3.25
A110: Cerveja Brahma 473ml | B110: =30*12 -> 360 | D110: =40/12 -> 3.333333333
A111: Cerveja Antartica lata 473ml | B111: =109*12 -> 1308 | D111: =41/12 -> 3.416666667
A112: Cerveja Antartica lata 473ml | D112: =43.9/12 -> 3.658333333
A113: Cerveja Stella lata 473 ml | D113: =46.9/12 -> 3.908333333
A114: Cerveja Budweiser Latão | D114: =46.24/12 -> 3.853333333
A115: Cerveja Budweiser LongNeck | D115: =95.8/24 -> 3.991666667
A116: Brahma Duplo Malte | D116: 3.425
C118: Venda Custo
A119: ITAIPAVA
A120: Cerveja Itaipava Latão | D120: =30.15/12 -> 2.5125
A121: Cerveja Lokal latão | D121: =27.4/12 -> 2.283333333
C122: Venda Custo
A123: IMPERIO
A124: Creveja Imperio Latão Puro Malte | C124: 8 | D124: =37/12 -> 3.083333333
A125: Creveja Imperio Latão Puro Malte | C125: 1 | D125: =37/12 -> 3.083333333
A126: Creveja Imperio Latão Large | D126: 3.98
C127: Venda Custo
A128: HEINEKEN
A129: Cerveja Amstel 473ml | B129: =43*12 -> 516 | C129: 2 | D129: =41.5/12 -> 3.458333333
A130: Cerveja Amstel 473ml | D130: =45/12 -> 3.75
A131: Cerveja Heineken 350ml | D131: =49.89/12 -> 4.1575
A132: Cerveja Heineken 473ml | B132: 48 | C132: 1 | D132: =57/12 -> 4.75
C133: Venda Custo
A134: CACHAÇA
A135: Cachaça 500ml | D135: 4
A136: Cachaça 300ml | D136: 2.4
A137: Cachaça 200ml | C137: 1 | D137: 1.5
C139: Venda Custo
B142: Soma de Itens | C142: =SUM(B107:C138) -> 2245
C143: Venda Custo
A145: TOTAL DAS VENDAS CUSTO | B145: =E143+E102 -> 0 | C145: TOTAL DAS VENDAS GERAL

Sheet 04-10-24
A1: Produto | B1: Quantidade Vendida Quente | C1: Quantidade Vendida Gelada | D1: Preço Custo
A2: AMBEV
A3: Coluna1 | B3: Coluna2 | C3: Coluna3 | D3: Coluna4 | E3: Coluna5 | F3: Coluna6 | G3: Coluna7 | H3: Coluna8 | I3: Coluna9 | J3: Coluna10 | K3: Coluna11
A4: Cerveja Skol 1 litro | B4: 12 | C4: 2 | D4: =83/12 -> 6.916666667
A5: Cerveja Brahma 1 litro | B5: 12 | C5: 1 | D5: =78.5/12 -> 6.541666667
A6: Cerveja Brahma 1 litro | D6: =78.5/12 -> 6.541666667
A7: Cerveja Brahma 300ml | D7: =49.48/23 -> 2.151304348
A8: Cerveja Antartica 1 litro | B8: =17*12 -> 204 | C8: 78 | D8: =83/12 -> 6.916666667
A9: Cerveja Antartica 1 litro | D9: =83/12 -> 6.916666667
A10: Cerveja Budweiser 1 litro | D10: =78.5/12 -> 6.541666667
A11: Cerveja Budweiser 1 litro | D11: =78.5/12 -> 6.541666667
A12: Cerveja Budweiser Long Neck | D12: 4
A13: Cerveja Antartica 300ml | D13: =53.48/23 -> 2.325217391
A14: Cerveja original 300ml | D14: =59/23 -> 2.565217391
A15: Cerveja Stella 600ml | D15: =181.2/24 -> 7.55
A16: Cerveja original 1 Litro | D16: =89.9/12 -> 7.491666667
A17: Cerveja original 473 ml | D17: =4.41 -> 4.41
A18: Vodka Orloff 1 litro | D18: 28.4
A19: Vodka Smirnoff 998ml | D19: 33.73
A20: Cerveja Sparten Lata 473ml | D20: =49.9/12 -> 4.158333333
A21: Cerveja corona LongNeck | D21: =127/24 -> 5.291666667
A22: Cachaça Seleta 1 litro | D22: 29.9
A23: Wisky Red Label | D23: 74.9
A24: Wisky Cavalo Branco | D24: 62.9
A25: Refrigerante Pepsi 2 litros | D25: 6
A26: Refrigerante Pepsi 200ml | D26: =15/12 -> 1.25
A27: Refrigerante Antarctica 2 litros | C27: 1 | D27: =39.78/6 -> 6.63
A28: Refrigerante Antarctica 200ml | D28: =15/12 -> 1.25
A29: Refrigerante Antarctica 350ml | D29: =11.6/12 -> 0.9666666667
A30: Refrigerante Sukita 2 litros | C30: 2 | D30: =28.75/6 -> 4.791666667
A31: Refrigerante Sukita Laranja 200ml | D31: =16.68/12 -> 1.39
A32: Energetico Red Bull 250ml | D32: 7.29
A33: H2OH 1,5 litro limoneto | D33: =39.6/6 -> 6.6
A34: Bala Halls | D34: 1.1971
A35: Skol Beats | D35: =38.4/8 -> 4.8
A36: Biscoito Piraque | D36: 2.5
C37: Venda Custo
A38: HEINEKEN
A39: Cerveja Heineken 600ml | D39: 8.29
A40: Agua Mamba Water 350ml | D40: 2.17
A41: Cerveja Lagunitas 350ml | D41: 4
A42: Cerveja Amstel 1 litro | B42: 12 | C42: 12 | D42: =74.95/12 -> 6.245833333
A43: Cerveja BADEN 350ml | D43: 4.34
C44: Venda Custo
A45: ITAUP
A46: Refrigerante ItaUp sabores | D46: =18.9/6 -> 3.15
A47: Energetico Fontt 2 litros | D47: 3
C48: Venda Custo
A49: COCA COLA
A50: Refrigerante Coca Cola 2 litros | B50: =5*6 -> 30 | C50: 1 | D50: =46/6 -> 7.666666667
A51: Refrigerante Coca Cola 2 litros Retornavel | D51: 5.7
A52: Refrigerante Fanta Laranja 2 litros | D52: =35.5/6 -> 5.916666667
A53: Refrigerante Coca Cola 2 litros Sem Açucar | D53: =63.2/8 -> 7.9
A54: Refrigerante Coca Cola mini 200ml | D54: =17.4/12 -> 1.45
A55: Refrigerante Fanta Laranja 600ml | D55: 3.62
A56: Refrigerante Coca Cola lata 350ml | D56: =33/12 -> 2.75
A57: Refrigerante Coca Cola 600ml | D57: 4.5
A58: Refrigerante Coca Cola lata 350ml sem açucar | D58: 2.61
A59: Suco DelVale 1,5 | D59: 7.03
A60: Suco Kappo | D60: 1.25
C61: Venda Custo
A62: NESTLE
A63: CHOKITO | D63: 1.66
A64: PASSATEMPO | D64: 2.29
A65: BONO | D65: 2.17
A66: PRESTIGIO | D66: 1.54
C67: Venda Custo
A68: CARVÃO ROYTEC
A69: Carvão Roytec 2,5kg | D69: 8.5
C70: Venda Custo
A71: AGUA
A72: AGUA 20 LITROS | C72: 1 | D72: 6
A73: AGUA COM GÁS 510ML | C73: 1 | D73: =14/12 -> 1.166666667
A74: AGUA SEM GÁS 510ML | D74: =10/12 -> 0.8333333333
C75: Venda Custo
A76: BE LONG
A77: Energetico one 2 litros | B77: 12 | C77: 1 | D77: =26.1/6 -> 4.35
A78: Vodka Darkoff 900ml | B78: 12 | D78: 5.5
A79: Vodka Darkoff 1,50 litros | D79: =90/12 -> 7.5
A80: Combo Jaya 1,50 litros | D80: =D79+D85 -> 14
A81: Combo One 1,50 litros | D81: =D79+D77 -> 11.85
A82: Combo Jaya 900ml | D82: =5.3+6.8 -> 12.1
A83: Combo One 900ml | D83: =4.7+5.3 -> 10
A84: Vinho Bodegão Bordo 1 Litro | D84: =98.94/12 -> 8.245
A85: Energetico Jaya 2 litros | C85: 1 | D85: 6.5
A86: Ice One 300ml | D86: 1.89
A87: Coquetel Banana Belong 960ml | D87: =93/6 -> 15.5
A88: Chopp Bodegão 600ml | D88: =59.4/12 -> 4.95
A89: Vinho Bodegão 2 Litros | C89: 2 | D89: 16.5
A90: Menta 900ml | D90: 5.9
C91: Venda Custo
A92: ARBOL
A93: Ousadia 500ml | D93: =38.92/12 -> 3.243333333
A94: Chopp Vinho Pink Moon 600ml | D94: 7.4
A95: Vodka Komaroff 1L | D95: 6
A96: Ice syn 300ml | D96: =43.23/24 -> 1.80125
A97: GostoGin lata 269ml | D97: =81.58/24 -> 3.399166667
A98: Vinho Cantina da serra | D98: =53.72/12 -> 4.476666667
C99: Venda Custo
B101: Soma de Itens | C101: =SUM(B4:C98) -> 397
C102: Venda Custo
A103: INAH
A104: Produto | B104: Quantidade Vendida Quente | C104: Quantidade Vendida Gelada | D104: Preço Custo
A105: AMBEV
A106: Coluna1 | B106: Coluna2 | C106: Coluna3 | D106: Coluna4 | E106: Coluna5 | F106: Coluna6 | G106: Coluna7 | H106: Coluna8 | I106: Coluna9 | J106: Coluna10 | K106: Coluna11
A107: Cerveja Skol Lata 473ml | D107: =41.9/12 -> 3.491666667
A108: Cerveja Skol Beats Lata 269ml | D108: 5.14
A109: Cerveja Brahma 473ml | D109: =40/12 -> 3.333333333
A110: Cerveja Brahma 473ml | D110: =41.9/12 -> 3.491666667
A111: Cerveja Antartica lata 473ml | B111: 24 | C111: =4+24 -> 28 | D111: =41/12 -> 3.416666667
A112: Cerveja Antartica lata 473ml | D112: =43.9/12 -> 3.658333333
A113: Cerveja Stella lata 473 ml | D113: =46.9/12 -> 3.908333333
A114: Cerveja Budweiser Latão | D114: =46.24/12 -> 3.853333333
A115: Cerveja Budweiser LongNeck | D115: =95.8/24 -> 3.991666667
A116: Brahma Duplo Malte | D116: 3.425
C118: Venda Custo
A119: ITAIPAVA
A120: Cerveja Itaipava Latão | D120: =30.15/12 -> 2.5125
A121: Cerveja Lokal latão | D121: =27.4/12 -> 2.283333333
C122: Venda Custo
A123: IMPERIO
A124: Creveja Imperio Latão Puro Malte | C124: 1 | D124: =37/12 -> 3.083333333
A125: Creveja Imperio Latão Puro Malte | C125: 12 | D125: =37/12 -> 3.083333333
A126: Creveja Imperio Latão Large | D126: 3.98
C127: Venda Custo
A128: HEINEKEN
A129: Cerveja Amstel 473ml | B129: 24 | C129: =2+24 -> 26 | D129: =41.5/12 -> 3.458333333
A130: Cerveja Amstel 473ml | D130: =45/12 -> 3.75
A131: Cerveja Heineken 350ml | D131: =49.89/12 -> 4.1575
A132: Cerveja Heineken 473ml | B132: =7*12 -> 84 | C132: =24 -> 24 | D132: =57/12 -> 4.75
C133: Venda Custo
A134: CACHAÇA
A135: Cachaça 500ml | D135: 4
A136: Cachaça 300ml | D136: 2.4
A137: Cachaça 200ml | D137: 1.5
C139: Venda Custo
B142: Soma de Itens | C142: =SUM(B107:C138) -> 223
C143: Venda Custo
A145: TOTAL DAS VENDAS CUSTO | B145: =E143+E102 -> 0 | C145: TOTAL DAS VENDAS GERAL
